Cogmind - Beta 11.1 @@@ ROGUE MODE // 2022.10.09 @ 21:07:42 Player: Bert Result: Destroyed by S-10 Pest with Light Assault Rifle Performance ------------- Evolutions (2) 1000 Regions Visited (4) 800 Robots Destroyed (28) 140 Value Destroyed (761) 761 Prototype IDs (4) 80 Alien Tech Used (0) 0 Bonus (0) 0 TOTAL SCORE: 2781 Bonus ------- None Cogmind --------- Core Integrity 0/550 Matter 300/300 Energy 100/100 System Corruption 1% Temperature Cool (9) Movement Core (50) Location -8/Materials Parts ------- > --- POWER (2) -------- (None) > --- PROPULSION (3) --- (None) > --- UTILITY (4) ------ Improved Signal Interpreter Advanced Targeting Computer Hacking Suite > --- WEAPON (2) ------- (None) > --- INVENTORY (5) ---- Advanced Visual Processing Unit Advanced ECM Suite Advanced ECM Suite Ion Cannon Peak State ------------ > --- POWER ------------ Improved Ion Engine Nuclear Core > --- PROPULSION ------- Improved Flight Unit Improved Flight Unit Improved Flight Unit > --- UTILITY ---------- Large Storage Unit Sensor Array Improved Signal Interpreter Advanced Targeting Computer > --- WEAPON ----------- Ion Cannon Assault Cannon > --- INVENTORY -------- Improved Ion Engine Deuterium Engine Compact Wheel Compact Wheel Improved Flight Unit Cryofiber Web Trap Scanner Advanced Visual Processing Unit Advanced ECM Suite Hacking Suite EM Pulse Gun Minigun High-powered Shotgun Mini Grenade Launcher Great Axe [Rating: 31] Favorites ----------- Power Deuterium Engine Engine Deuterium Engine Power Core Nuclear Core Propulsion Compact Wheel Wheel Compact Wheel Flight Unit Improved Flight Unit Utility Sensor Array Device Sensor Array Storage Small Storage Unit Processor Advanced Targeting Computer Hackware Hacking Suite Weapon High-powered Shotgun Energy Gun Particle Gun Energy Cannon Ion Cannon Ballistic Gun High-powered Shotgun Ballistic Cannon Assault Cannon Launcher Mini Grenade Launcher Impact Weapon Mace Slashing Weapon Great Axe Build | -11 -10 -9 -9 -8 ------- Run | Scr Mat Mat Min Mat Slots Evolved 4 | . . 2 . 2 Power 1 | . . . . 1 Propulsion 1 | . . . . 1 Utility 2 | . . 2 . . Weapon . | . . . . . Parts Attached 51 | 6 4 8 2 31 Power 8 | 1 1 1 . 5 Engine 7 | 1 1 1 . 4 Core 1 | . . . . 1 Reactor . | . . . . . Propulsion 13 | 2 . 1 . 10 Treads . | . . . . . Leg . | . . . . . Wheel 9 | 2 . 1 . 6 Hover . | . . . . . Flight 4 | . . . . 4 Utility 9 | 1 1 2 . 5 Device 2 | . 1 1 . . Storage 2 | 1 . . . 1 Processor 4 | . . 1 . 3 Hackware 1 | . . . . 1 Protection . | . . . . . Artifact . | . . . . . Weapon 21 | 2 2 4 2 11 Energy Gun 5 | 1 . 2 1 1 Energy Cannon 3 | . 1 . . 2 Ballistic Gun 2 | 1 . . . 1 Ballistic Cannon 1 | . . . . 1 Launcher 4 | . 1 . 1 2 Special Weapon . | . . . . . Impact Weapon 2 | . . 2 . . Slashing Weapon 4 | . . . . 4 Piercing Weapon . | . . . . . Special Melee Weapon . | . . . . . Unidentified Prototypes 2 | . . . 1 1 Parts Lost 10 | . . 1 1 8 Power 2 | . . . . 2 Propulsion 3 | . . . . 3 Utility 1 | . . . . 1 Weapon 4 | . . 1 1 2 Highest Loss Streak 6 | . . 1 1 6 To Critical Strikes . | . . . . . Average Slot Usage (%) 96 | . 97 97 100 95 Engine 10 | . 14 11 11 10 Core 3 | . . . . 5 Wheel 22 | . 28 22 22 21 Flight 2 | . . . . 4 Device 12 | . 11 21 22 9 Storage 9 | . 14 11 11 7 Processor 13 | . . 11 11 17 Hackware 1 | . . . . 1 Energy Gun 4 | . . 15 11 1 Energy Cannon 3 | . 10 1 . 3 Ballistic Gun 5 | . 14 . . 5 Launcher 2 | . 2 . 10 1 Slashing Weapon 2 | . . . . 3 Naked Turns . | . . . . . Heaviest Build 48 | 11 14 20 19 48 Greatest Support 48 | 26 26 32 32 48 Greatest Overweight (x) 9 | 1 . . . 9 Average Overweight (x) . | . . . . . Largest Inventory Capacity 15 | 8 8 8 8 15 Average Capacity 9 | 7 8 8 8 10 Most Carried 15 | 2 8 8 8 15 Average Carried 7 | 1 5 7 7 7 Final Capacity 8 | 8 8 8 8 5 Final Carried 8 | 2 8 8 8 4 Class Distribution -------------------- 100% | Mutant Dominant Class ---------------- Mutant | -10/Materials Mutant | -9/Materials Mutant | -9/Mines Mutant | -8/Materials Resources | -11 -10 -9 -9 -8 ----------- Run | Scr Mat Mat Min Mat Matter Collected 908 | 249 92 70 26 471 Remotely . | . . . . . Salvage Created 876 | . 144 160 75 497 Parts 58 | . 17 8 4 29 Haulers Intercepted 3 | . 1 . . 2 Recyclers Shooed 1 | . 1 . . . Parts Field Recycled . | . . . . . Retrieved Matter . | . . . . . Parts Self-Destructed . | . . . . . Prevented . | . . . . . Kills | -11 -10 -9 -9 -8 ------- Run | Scr Mat Mat Min Mat Combat Hostiles Destroyed 19 | . 3 3 2 11 Melee 1 | . . . . 1 Guns 8 | . 1 2 1 4 Cannons 3 | . . . . 3 AOE 7 | . 2 1 1 3 Classes Destroyed 9 | . 5 3 1 . Worker 3 | . 1 . . 2 Hauler 3 | . 1 . . 2 Recycler 1 | . 1 . . . Operator 1 | . . 1 . . Watcher 1 | . 1 . . . Swarmer 5 | . 3 . . 2 Grunt 9 | . . 2 1 6 Brawler 2 | . . . 1 1 Sentry 3 | . . 1 . 2 Best Kill Streak 4 | . 4 3 2 4 Combat Bots Only 3 | . 3 2 2 3 Max Kills in Single Turn 2 | . 2 1 1 2 Gunslinging . | . . . . . Exploded 2 | . 2 1 1 2 Melee 1 | . . . . 1 Uniques/NPCs Destroyed . | . . . . . Combat | -11 -10 -9 -9 -8 -------- Run | Scr Mat Mat Min Mat Damage Taken 1640 | . 141 264 34 1201 Core 742 | . 84 104 . 554 Absorbed by Shields . | . . . . . Core Remaining (%) 80 | 100 66 . 74 . Volleys Fired 55 | . 11 9 4 31 Largest 2 | . 2 2 2 2 Hottest 110 | . 80 105 110 104 Shots Fired 106 | . 22 18 8 58 Gun 66 | . 11 18 7 30 Cannon 30 | . 8 . . 22 Launcher 10 | . 3 . 1 6 Special . | . . . . . Kinetic 37 | . 11 . . 26 Thermal 40 | . 8 9 4 19 Explosive 10 | . 3 . 1 6 Electromagnetic 19 | . . 9 3 7 Robot Hit Streak 10 | . 3 6 4 10 Robot Miss Streak 4 | . 3 1 3 4 Penetration Max . | . . . . . Secondary Targets 1 | . . . 1 . Max Gunslinging Chain 1 | . . . 1 . Shots Hit Robots 69 | . 10 13 6 40 Core Hits 52 | . 12 7 3 30 Critical Kills . | . . . . . Critical Parts Destroyed . | . . . . . Critical Strikes 1 | . . . . 1 Blast 1 | . . . . 1 Melee Attacks 21 | . . 3 . 18 Impact 3 | . . 3 . . Slashing 18 | . . . . 18 Piercing . | . . . . . Sneak Attacks . | . . . . . Combat Hostiles . | . . . . . Follow-up Attacks . | . . . . . Damage Inflicted 2155 | . 464 230 131 1330 Guns 786 | . 52 184 75 475 Cannons 413 | . 87 . . 326 Explosions 863 | . 325 46 56 436 Melee 72 | . . . . 72 Ramming 21 | . . . . 21 Kinetic 501 | . 52 . . 449 Thermal 540 | . 87 131 45 277 Explosive 817 | . 325 . 56 436 Electromagnetic 204 | . . 99 30 75 Impact . | . . . . . Slashing 72 | . . . . 72 Piercing . | . . . . . Highest Corruption 1 | . . . . 1 Average Corruption 1 | . . . . 1 Corruption Purged . | . . . . . Corruption Blocked . | . . . . . Effects 4 | . . . . 4 Message Errors 1 | . . . . 1 Matter Fused 1 | . . . . 1 Heat Flow Errors 1 | . . . . 1 Misfires 1 | . . . . 1 Overload Shots . | . . . . . Overflow Damage 131 | . 6 89 . 36 Projectiles . | . . . . . Explosions 99 | . 6 89 . 4 Melee 32 | . . . . 32 Knockbacks . | . . . . . Impact . | . . . . . Kinetic . | . . . . . Secondary . | . . . . . Self-Inflicted Damage 282 | . 120 136 . 26 Shots 6 | . 3 2 . 1 Rammed 7 | . . . . 7 Targets Rammed 7 | . . . . 7 Kicked . | . . . . . Crushed . | . . . . . Highest Temperature 439 | . 100 99 149 439 Average Temperature 73 | . 32 42 89 90 Received Heat Transfer 411 | . . 60 18 333 Effects 6 | . . . . 6 Shutdowns 2 | . . . . 2 Interference 3 | . . . . 3 Damage (minor) 1 | . . . . 1 Siege Activations . | . . . . . Robots Corrupted . | . . . . . Combat Hostiles . | . . . . . Parts Fried . | . . . . . Impact Corruptions . | . . . . . Robots Melted . | . . . . . Combat Hostiles . | . . . . . Parts Melted . | . . . . . Heat Transferred 1012 | . 185 272 111 444 Parts Sabotaged . | . . . . . Parts Stolen . | . . . . . Parts Stripped . | . . . . . Power Chain Reactions 1 | . . 1 . . Missiles Intercepted . | . . . . . Alert | -11 -10 -9 -9 -8 ------- Run | Scr Mat Mat Min Mat Peak Influence 460 | . 298 460 264 202 Initial 179 | . . 125 179 102 Average 143 | . 190 287 257 93 Maximum Alert Level 2 | . 1 2 1 1 Low Security (%) 74 | 100 68 25 5 94 Level 1 20 | . 31 38 94 5 Level 2 4 | . . 36 . . Level 3 . | . . . . . Level 4 . | . . . . . Level 5 . | . . . . . High Security . | . . . . . Max Security . | . . . . . Squads Dispatched 7 | . 1 . . 6 Investigation 3 | . . . . 3 Extermination . | . . . . . Reinforcement 4 | . 1 . . 3 Assault . | . . . . . Garrison . | . . . . . Intercept . | . . . . . Searches Triggered . | . . . . . Construction Impeded . | . . . . . Haulers Reinforced . | . . . . . Active Scanning Responses . | . . . . . Cargo Convoy Interrupts . | . . . . . Stealth | -11 -10 -9 -9 -8 --------- Run | Scr Mat Mat Min Mat Distress Signals 3 | . . . . 3 Communications Jammed . | . . . . . Distress Signals . | . . . . . Times Spotted 51 | . 8 9 2 32 Peak Tracking Total 13 | . 3 2 2 13 Tactical Retreats 7 | . 1 2 . 4 Traps | -11 -10 -9 -9 -8 ------- Run | Scr Mat Mat Min Mat Traps Triggered 4 | . . . . 4 Indirectly . | . . . . . Trap Hack Attempts . | . . . . . Triggered . | . . . . . Disarmed . | . . . . . Reprogrammed . | . . . . . Reused . | . . . . . Traps Extracted . | . . . . . Installed . | . . . . . Triggered . | . . . . . Machines | -11 -10 -9 -9 -8 ---------- Run | Scr Mat Mat Min Mat Machines Disabled 6 | . 2 2 . 2 Max in Single Turn 2 | . 2 2 . 1 Machines Sabotaged . | . . . . . Garrisons Compromised . | . . . . . Overloaded Fab Kills . | . . . . . Hacking | -11 -10 -9 -9 -8 --------- Run | Scr Mat Mat Min Mat Machines Accessed 13 | . 3 3 . 7 Terminals 9 | . 2 2 . 5 Fabricators . | . . . . . Repair Stations 1 | . 1 . . . Recycling Units 1 | . . 1 . . Scanalyzers 2 | . . . . 2 Garrison Access . | . . . . . Total Hacks 35 | . 6 8 . 21 Successful 20 | . 4 5 . 11 Failed 15 | . 2 3 . 10 Catastrophic 2 | . 1 1 . . Database Lockouts . | . . . . . Manual 3 | . . 2 . 1 Terminals 22 | . 4 5 . 13 Fabricators . | . . . . . Repair Stations 2 | . 2 . . . Recycling Units 3 | . . 3 . . Scanalyzers 8 | . . . . 8 Garrison Access . | . . . . . Terminal Hacks 12 | . 3 3 . 6 Record 2 | . . . . 2 Prototype ID Bank 1 | . 1 . . . Emergency Access Points 1 | . 1 . . . Scanalyzer Index 1 | . . . . 1 Alert Level 3 | . . 1 . 2 Unreport Threat 1 | . . . . 1 Locate Traps 1 | . . 1 . . Recall Reinforcements 1 | . . 1 . . Zone Layout 1 | . 1 . . . Fabricator Hacks . | . . . . . Repair Station Hacks 1 | . 1 . . . Scan Component 1 | . 1 . . . Recycling Unit Hacks 2 | . . 2 . . Report Inventory 1 | . . 1 . . Retrieve Components 1 | . . 1 . . Scanalyzer 5 | . . . . 5 Insert Component 3 | . . . . 3 Analyze 2 | . . . . 2 Garrison Access Hacks . | . . . . . Unauthorized Hacks . | . . . . . Terminals . | . . . . . Fabricators . | . . . . . Repair Stations . | . . . . . Recycling Units . | . . . . . Scanalyzers . | . . . . . Garrison Access . | . . . . . Data Cores Recovered 1 | . . 1 . . Used 1 | . . 1 . . Hacking Detections 10 | . 2 1 . 7 Full Trace Events . | . . . . . Feedback Events . | . . . . . Feedback Blocked . | . . . . . Robot Schematics Acquired . | . . . . . Robots Built . | . . . . . Authchips . | . . . . . Time . | . . . . . Total Robot Build Rating . | . . . . . Part Schematics Acquired 2 | . . . . 2 Parts Built . | . . . . . Authchips . | . . . . . Time . | . . . . . Total Part Build Rating . | . . . . . Parts Repaired . | . . . . . Time . | . . . . . Parts Recycled . | . . . . . Recycled Matter . | . . . . . Retrieved Matter . | . . . . . Retrieved Components 3 | . . 3 . . Parts Scanalyzed 2 | . . . . 2 Part Schematics Acquired 2 | . . . . 2 Parts Damaged . | . . . . . Bothacking | -11 -10 -9 -9 -8 ------------ Run | Scr Mat Mat Min Mat Used RIF Installer . | . . . . . Robots Hacked . | . . . . . Non-combat . | . . . . . Combat . | . . . . . Robot Hacks Applied . | . . . . . Relay Couplers Released . | . . . . . Fabnet Peak Effective % . | . . . . . Robots Rewired . | . . . . . Allies Hacked . | . . . . . Hacks Repelled . | . . . . . Allies | -11 -10 -9 -9 -8 -------- Run | Scr Mat Mat Min Mat Total Allies . | . . . . . Largest Group . | . . . . . Highest-Rated Group . | . . . . . Highest-Rated Ally . | . . . . . Total Orders . | . . . . . Ally Attacks . | . . . . . Total Damage . | . . . . . Kills . | . . . . . Allies Corrupted . | . . . . . Allies Melted . | . . . . . Intel | -11 -10 -9 -9 -8 ------- Run | Scr Mat Mat Min Mat Robot Analysis Total . | . . . . . Derelict Logs Recovered . | . . . . . Drone Launches . | . . . . . Drone Recoveries . | . . . . . Exploration | -11 -10 -9 -9 -8 ------------- Run | Scr Mat Mat Min Mat Turns Passed 1773 | 41 260 235 132 1105 Spaces Moved 1647 | 35 232 187 117 1076 Core 5 | 1 . . . 4 Treads . | . . . . . Legs . | . . . . . Wheels 1293 | 34 232 187 117 723 Hover . | . . . . . Flight 349 | . . . . 349 Fastest Speed 34 | 50 90 90 100 34 Average Speed 85 | 87 90 98 100 80 Slowest Speed 675 | 95 90 100 100 675 Overloaded Moves . | . . . . . Propulsion Burnouts . | . . . . . Robots Hopped 1 | . . . . 1 Cave-ins Triggered . | . . . . . Exploration Rate (%) 33 | 3 38 19 38 70 Regions Visited 4 Branch Regions 1 Pre-discovered Areas . | . . . . . Known Exits Taken . | . . . . . Unknown Exits Taken 4 | 1 1 1 1 . Scrap Searched 1 | . . . 1 . Spaces Dug 17 | . . 3 . 14 Terrain Destroyed 109 | . 31 23 15 40 Melee 17 | . . 3 . 14 Projectile . | . . . . . AOE 92 | . 31 20 15 26 Terrain Rammed . | . . . . . Walls Destroyed . | . . . . . Machines Disabled . | . . . . . Actions | -11 -10 -9 -9 -8 --------- Run | Scr Mat Mat Min Mat Total 1870 | 42 264 214 123 1227 Wait 16 | . . 2 . 14 Move 1641 | 34 231 186 116 1074 Hop 1 | . . . . 1 Pick Up 33 | 2 12 3 1 15 Fast Attach 19 | 6 1 2 . 10 Attach 7 | . . 2 1 4 Detach 6 | . . . . 6 Swap 25 | . 3 4 1 17 Drop 39 | . 6 3 . 30 Fire 55 | . 11 9 4 31 Melee 21 | . . 3 . 18 Ram 7 | . . . . 7 Kick . | . . . . . Crush . | . . . . . Escape Stasis . | . . . . . Rewire . | . . . . . Trap . | . . . . . Miscellaneous . | . . . . . Route ------- -11/Scrapyard -10/Materials -9/Materials -9/Mines -8/Materials History --------- Turn | Location | Event 20 | -11/Scrapyard | Discovered new exit (range 15) 42 | -11/Scrapyard | Entered Materials 287 | -10/Materials | Discovered new exit (range 13) 302 | -10/Materials | Entered another Materials area 302 | -9/Materials | Evolved 2 slots: Utility x2 388 | -9/Materials | Build established: Mutant 532 | -9/Materials | Discovered new exit (range 5) 537 | -9/Materials | Entered Mines 651 | -9/Mines | Discovered new exit (range 8) 669 | -9/Mines | Entered Materials 669 | -8/Materials | Evolved 2 slots: Power x1, Propulsion x1 1729 | -8/Materials | Core integrity fell below 50% 1768 | -8/Materials | Core integrity fell below 20% 1774 | -8/Materials | Destroyed by S-10 Pest with Light Assault Rifle Last Messages --------------- 01729_ Imp. Flight Unit destroyed. 01730_ K-01 Serf collects debris. 01731_ K-01 Serf destroyed. 01734_ The unstable cave ceiling collapses. 01734_ G-47 Trooper suffers critical hit (Burn). 01735_ Mni. Grenade Launcher destroyed. 01741_ Acquired 71 matter. 01755_ Z5UCELAUWT/ECBWY&QX 0L:CXSPAZVE% 01757_ Destroyed Flight Unit. 01763_ Great Axe destroyed. 01765_ Slug penetrates Wall. 01765_ Imp. Flight Unit destroyed. 01766_ Slammed into G-47 Trooper. 01767_ Sensor Array destroyed. 01768_ Slug penetrates Wall. 01768_ Slammed into G-47 Trooper. 01770_ G-47 Trooper destroyed. 01772_ Penetrated by Slug. 01773_ Slammed into H-55 Commando. 01774_ Slammed into G-50 Soldier. Map ----- +----------------------------------------------------+ | """ / ######?# #???# # | | """" | ############ # #???# # | | """" #?????# # # ##### # | | """" ####### # # | | """ # """ # | | ! " """" ? | | # """"" ? | | #T### ######## # """""?? | | #####+####???# # """ ?? | | # !#??##### # ??? | | # """ #??#! * # ?? | | # """ #??# """ ###### # ? | | # """ #??# ! """"" #?????# # ? | | # #??# """"" #?????# # # | | + ]] #??# """"" #?????# ########## | | # = ]][ #?# """ #?????# #????????? | | # ]][ #?# #?????# #????????? | | # ##?# ?? #?????# #????????? | | #### #??###########?????# #????????? | | #??### ###????# """ #??????# #????????? | | #?????##??????# "T" #??#####Y#####????? | | #?????????????# #??#[ #????? | | #?????????????# #??# """ #????? | | #?????????????# #??#%Y ! "Y" #????? | | ##????????????# #??#hg #????? | | #################+######@#########????? | | s% % #?????????? | | % % %#?????????? | | s% #?????????? | | #################+######;#####????????? | | ##????????# # #????????? | | ??????????# # #????????? | | ??????????# # #????????? | | ??????????# ]! # #????????? | | ??????????#####################????????? | | | | | | | | | | | | | | | | | | | | | | | | | | | | | | | +----------------------------------------------------+ Best States ------------- Heat Dissipation 31 Energy Generation 23 Energy Capacity 455 Matter Stores 300 Matter Capacity 300 Sight Range 16 Robot Scan Range 14 Terrain Scan Density 10 ECM Strength 1 Evasion (%) 63 Targeting Accuracy 8 Offensive Hacking 10 Item Schematics ----------------- Adv. ECM Suite | -8/Materials | Scanalyzed Hacking Suite | -8/Materials | Scanalyzed Robot Schematics ------------------ None Fabricated ------------ Nothing Alien Tech Used ----------------- None Achievements -------------- None Challenges ------------ None Game ------ Seed MagneticChainRegenerator Manual? 0 Play Time 00:44:51 Cumulative 166.1 hours Start 2022.10.09 @ 20:23:18 End 2022.10.09 @ 21:07:42 Sessions 1 Manual Loads 0 Difficulty Rogue Special Mode None Game No. 215 Rogue 215 Adventurer 0 Explorer 0 Win Type - Total 1 Types 1/0/0/0/0/0/0/0/0 Lore% 36 Gallery% 57 Achievement% 41 Wizard Run 0 Options --------- ASCII 0 Keyboard 1 Movement Numpad Keybinds 0 Fullscreen 1 Font 12/Terminus Map View 83x54 Tactical HUD 1 Map Filters NONE Filters NONE Steam 1 RUN: 3a00af14-2494-45e8-b613-1812fb3422fc